[Event "*** Titled Tuesday Blitz"]
[Site "Chess.com"]
[Date "2021.02.16"]
[Round "6"]
[White "aa175"]
[Black "Alexander_Moskalenko"]
[Result "1/2-1/2"]
[WhiteElo "2612"]
[BlackElo "2759"]
[TimeControl "180+1"]
[EndTime "11:08:51 PST"]
[Termination "Game drawn by stalemate"]

1. d4 {[%clk 0:03:00.9]} 1... Nf6 {[%clk 0:02:54.6]} 2. Nf3 {[%clk 0:03:00.6]}
2... g6 {[%clk 0:02:51.2]} 3. Bf4 {[%clk 0:03:01]} 3... Bg7 {[%clk 0:02:52.1]}
4. e3 {[%clk 0:03:01.6]} 4... O-O {[%clk 0:02:52.7]} 5. Be2 {[%clk 0:03:02.3]}
5... c5 {[%clk 0:02:53.3]} 6. O-O {[%clk 0:03:02.4]} 6... b6 {[%clk 0:02:53.7]}
7. c3 {[%clk 0:03:02.4]} 7... d5 {[%clk 0:02:53.5]} 8. Nbd2 {[%clk 0:03:02.4]}
8... Bb7 {[%clk 0:02:54.2]} 9. a4 {[%clk 0:03:01.6]} 9... Nc6 {[%clk 0:02:54.6]}
10. Ne5 {[%clk 0:03:00.2]} 10... Nd7 {[%clk 0:02:54.4]} 11. Nxc6 {[%clk
0:02:55.3]} 11... Bxc6 {[%clk 0:02:55.3]} 12. a5 {[%clk 0:02:55.8]} 12... e5
{[%clk 0:02:43.1]} 13. dxe5 {[%clk 0:02:54.8]} 13... Nxe5 {[%clk 0:02:44]} 14.
Nf3 {[%clk 0:02:48.1]} 14... Nd7 {[%clk 0:02:30.2]} 15. Qb3 {[%clk 0:02:35]}
15... Qf6 {[%clk 0:02:23.5]} 16. axb6 {[%clk 0:02:25.8]} 16... axb6 {[%clk
0:02:22.9]} 17. Rxa8 {[%clk 0:02:25.5]} 17... Rxa8 {[%clk 0:02:23.8]} 18. Rd1
{[%clk 0:02:04.8]} 18... Bf8 {[%clk 0:02:17.6]} 19. Bb5 {[%clk 0:01:43.8]} 19...
c4 {[%clk 0:02:16.6]} 20. Bxc6 {[%clk 0:01:44.3]} 20... cxb3 {[%clk 0:02:16.5]}
21. Bxa8 {[%clk 0:01:44.6]} 21... Nc5 {[%clk 0:02:06.8]} 22. Bxd5 {[%clk
0:01:41.8]} 22... Na4 {[%clk 0:02:07.3]} 23. Be5 {[%clk 0:01:35]} 23... Qf5
{[%clk 0:01:53.9]} 24. e4 {[%clk 0:01:35.2]} 24... Qc8 {[%clk 0:01:52.6]} 25.
Ng5 {[%clk 0:01:31.9]} 25... Be7 {[%clk 0:01:45.4]} 26. Bxf7+ {[%clk 0:01:06.7]}
26... Kf8 {[%clk 0:01:45.3]} 27. Be6 {[%clk 0:01:07.6]} 27... Qc5 {[%clk
0:01:37.1]} 28. Nxh7+ {[%clk 0:00:59.4]} 28... Ke8 {[%clk 0:01:37.3]} 29. Nf6+
{[%clk 0:00:56.7]} 29... Bxf6 {[%clk 0:01:27.4]} 30. Bxf6 {[%clk 0:00:57.6]}
30... Qc7 {[%clk 0:01:27.8]} 31. Bxb3 {[%clk 0:00:36]} 31... Nxb2 {[%clk
0:01:26.8]} 32. Rd2 {[%clk 0:00:34]} 32... Nc4 {[%clk 0:01:25.2]} 33. Ba4+
{[%clk 0:00:18.5]} 33... Kf8 {[%clk 0:01:19.6]} 34. Rd8+ {[%clk 0:00:18]} 34...
Kf7 {[%clk 0:01:19.8]} 35. Rd7+ {[%clk 0:00:15.6]} 35... Qxd7 {[%clk 0:01:20.2]}
36. Bxd7 {[%clk 0:00:16.3]} 36... Kxf6 {[%clk 0:01:21.1]} 37. f4 {[%clk
0:00:13.2]} 37... g5 {[%clk 0:01:10.7]} 38. g3 {[%clk 0:00:10.3]} 38... Ne3
{[%clk 0:01:10.7]} 39. e5+ {[%clk 0:00:08]} 39... Ke7 {[%clk 0:01:10.9]} 40. Bb5
{[%clk 0:00:04.6]} 40... gxf4 {[%clk 0:01:11.8]} 41. gxf4 {[%clk 0:00:05.4]}
41... Nd5 {[%clk 0:01:12.2]} 42. f5 {[%clk 0:00:05.8]} 42... Nxc3 {[%clk
0:01:12.7]} 43. Bc4 {[%clk 0:00:05.1]} 43... b5 {[%clk 0:01:13.2]} 44. f6+
{[%clk 0:00:05.3]} 44... Kd7 {[%clk 0:01:13.6]} 45. e6+ {[%clk 0:00:04.9]} 45...
Ke8 {[%clk 0:01:13.2]} 46. Bd3 {[%clk 0:00:04.9]} 46... Nd5 {[%clk 0:01:13.1]}
47. Bxb5+ {[%clk 0:00:03.7]} 47... Kf8 {[%clk 0:01:13.6]} 48. f7 {[%clk
0:00:02.5]} 48... Nf4 {[%clk 0:01:11.5]} 49. Bd7 {[%clk 0:00:02.4]} 49... Nh3+
{[%clk 0:01:12]} 50. Kg2 {[%clk 0:00:02.8]} 50... Ng5 {[%clk 0:01:12.9]} 51. Kg3
{[%clk 0:00:03.1]} 51... Nxf7 {[%clk 0:01:13.4]} 52. Kg4 {[%clk 0:00:02.2]}
52... Nd8 {[%clk 0:01:12]} 53. Kf5 {[%clk 0:00:01.8]} 53... Nxe6 {[%clk
0:01:12.3]} 54. Kf6 {[%clk 0:00:01.6]} 54... Nf4 {[%clk 0:01:06.8]} 55. h4
{[%clk 0:00:01.7]} 55... Kg8 {[%clk 0:01:05.7]} 56. Bf5 {[%clk 0:00:01.3]} 56...
Kh8 {[%clk 0:01:05.5]} 57. Kg5 {[%clk 0:00:01.5]} 57... Nd5 {[%clk 0:01:06.4]}
58. Kh6 {[%clk 0:00:01.9]} 58... Ne7 {[%clk 0:01:07.3]} 59. Bg6 {[%clk
0:00:02.1]} 59... Ng8+ {[%clk 0:01:07.8]} 60. Kg5 {[%clk 0:00:02.4]} 60... Ne7
{[%clk 0:01:08.7]} 61. h5 {[%clk 0:00:02.9]} 61... Nc6 {[%clk 0:01:09.6]} 62.
Kh6 {[%clk 0:00:03.3]} 62... Nd4 {[%clk 0:01:10.5]} 63. Kg5 {[%clk 0:00:03]}
63... Nf3+ {[%clk 0:01:11.4]} 64. Kf6 {[%clk 0:00:03.4]} 64... Nh4 {[%clk
0:01:11.4]} 65. h6 {[%clk 0:00:04.1]} 65... Ng2 {[%clk 0:01:12.3]} 66. Be4
{[%clk 0:00:04.1]} 66... Ne3 {[%clk 0:01:13.2]} 67. Ke5 {[%clk 0:00:03.9]} 67...
Nd1 {[%clk 0:01:14.1]} 68. Kd4 {[%clk 0:00:04.8]} 68... Nc3 {[%clk 0:01:15]} 69.
Kxc3 {[%clk 0:00:05.7]} 69... Kg8 {[%clk 0:01:14]} 70. Kd2 {[%clk 0:00:06.6]}
70... Kh8 {[%clk 0:01:14.9]} 71. Bg6 {[%clk 0:00:07.5]} 71... Kg8 {[%clk
0:01:15.8]} 72. Ke2 {[%clk 0:00:08]} 72... Kh8 {[%clk 0:01:16.7]} 73. Kf2 {[%clk
0:00:08.9]} 73... Kg8 {[%clk 0:01:17.6]} 74. Kg2 {[%clk 0:00:09.2]} 74... Kh8
{[%clk 0:01:18.5]} 75. Kh2 {[%clk 0:00:09.7]} 75... Kg8 {[%clk 0:01:19.4]} 76.
Kh3 {[%clk 0:00:10.6]} 76... Kh8 {[%clk 0:01:20.3]} 77. Kh4 {[%clk 0:00:11.5]}
77... Kg8 {[%clk 0:01:21.2]} 78. Kh5 {[%clk 0:00:12.4]} 78... Kh8 {[%clk
0:01:22.1]} 79. Kg5 {[%clk 0:00:13.3]} 79... Kg8 {[%clk 0:01:23]} 80. Kf5 {[%clk
0:00:13.8]} 80... Kh8 {[%clk 0:01:23.9]} 81. Ke5 {[%clk 0:00:14.7]} 81... Kg8
{[%clk 0:01:24.8]} 82. Kd5 {[%clk 0:00:15.6]} 82... Kh8 {[%clk 0:01:25.7]} 83.
Kc5 {[%clk 0:00:16.5]} 83... Kg8 {[%clk 0:01:26.6]} 84. Kb6 {[%clk 0:00:17.4]}
84... Kh8 {[%clk 0:01:27.5]} 85. Kc7 {[%clk 0:00:18.3]} 85... Kg8 {[%clk
0:01:28.4]} 86. Kd8 {[%clk 0:00:19.2]} 86... Kh8 {[%clk 0:01:29.3]} 87. Bh5
{[%clk 0:00:20.1]} 87... Kg8 {[%clk 0:01:30.2]} 88. Ke8 {[%clk 0:00:21]} 88...
Kh8 {[%clk 0:01:31.1]} 89. Ke7 {[%clk 0:00:21.9]} 89... Kg8 {[%clk 0:01:32]} 90.
Bg4 {[%clk 0:00:22.1]} 90... Kh8 {[%clk 0:01:32.9]} 91. Kf6 {[%clk 0:00:22.3]}
91... Kg8 {[%clk 0:01:33.8]} 92. Kg6 {[%clk 0:00:23.2]} 92... Kh8 {[%clk
0:01:34.7]} 93. Bf5 {[%clk 0:00:24.1]} 93... Kg8 {[%clk 0:01:35.6]} 94. Kf6
{[%clk 0:00:24.5]} 94... Kh8 {[%clk 0:01:36.5]} 95. Be6 {[%clk 0:00:25.3]} 95...
Kh7 {[%clk 0:01:36]} 96. Kg5 {[%clk 0:00:26.2]} 96... Kh8 {[%clk 0:01:36.9]} 97.
Bf5 {[%clk 0:00:27.1]} 97... Kg8 {[%clk 0:01:37]} 98. Kg6 {[%clk 0:00:28]} 98...
Kh8 {[%clk 0:01:37.9]} 99. Be4 {[%clk 0:00:28.9]} 99... Kg8 {[%clk 0:01:38.6]}
100. Bd3 {[%clk 0:00:29.8]} 100... Kh8 {[%clk 0:01:39.5]} 101. Bc2 {[%clk
0:00:30.7]} 101... Kg8 {[%clk 0:01:40.4]} 102. Bb3+ {[%clk 0:00:31.6]} 102...
Kh8 {[%clk 0:01:41.3]} 103. Ba4 {[%clk 0:00:32.5]} 103... Kg8 {[%clk 0:01:40.8]}
104. h7+ {[%clk 0:00:33.4]} 104... Kh8 {[%clk 0:01:41.7]} 105. Kh6 {[%clk
0:00:34.3]} 1/2-1/2

[Event "*** Titled Tuesday Blitz"]
[Site "Chess.com"]
[Date "2021.02.16"]
[Round "6"]
[White "ehrenfeld"]
[Black "ferdipy"]
[Result "0-1"]
[WhiteElo "2478"]
[BlackElo "2352"]
[TimeControl "180+1"]
[EndTime "11:08:51 PST"]
[Termination "ferdipy won on time"]

1. e4 {[%clk 0:03:00.9]} 1... e6 {[%clk 0:02:59.5]} 2. d4 {[%clk 0:03:00.1]}
2... d5 {[%clk 0:03:00.4]} 3. e5 {[%clk 0:02:59.6]} 3... c5 {[%clk 0:02:58.7]}
4. c3 {[%clk 0:02:59.5]} 4... Nc6 {[%clk 0:02:53.5]} 5. Nf3 {[%clk 0:02:59.8]}
5... Qb6 {[%clk 0:02:47.9]} 6. a3 {[%clk 0:02:59.3]} 6... Bd7 {[%clk 0:02:46.3]}
7. b4 {[%clk 0:02:56.4]} 7... cxd4 {[%clk 0:02:46.6]} 8. cxd4 {[%clk 0:02:55.9]}
8... Rc8 {[%clk 0:02:47.5]} 9. Be3 {[%clk 0:02:53.4]} 9... Nge7 {[%clk
0:02:46.6]} 10. Bd3 {[%clk 0:02:53.3]} 10... Ng6 {[%clk 0:02:34.2]} 11. O-O
{[%clk 0:02:52.1]} 11... f6 {[%clk 0:02:34.6]} 12. exf6 {[%clk 0:02:43.7]} 12...
gxf6 {[%clk 0:02:33.9]} 13. Nbd2 {[%clk 0:02:42.6]} 13... Bg7 {[%clk 0:02:32]}
14. Nb3 {[%clk 0:02:41.3]} 14... O-O {[%clk 0:02:25.3]} 15. Nc5 {[%clk
0:02:40.9]} 15... Rcd8 {[%clk 0:02:11.2]} 16. Re1 {[%clk 0:02:36.6]} 16... Bc8
{[%clk 0:01:40.6]} 17. Rc1 {[%clk 0:02:34.1]} 17... Rde8 {[%clk 0:01:39.3]} 18.
Qc2 {[%clk 0:02:33.6]} 18... f5 {[%clk 0:01:26.2]} 19. Rcd1 {[%clk 0:01:46.9]}
19... Qc7 {[%clk 0:01:19.8]} 20. Bb5 {[%clk 0:01:30.5]} 20... e5 {[%clk
0:01:11.5]} 21. dxe5 {[%clk 0:01:26.7]} 21... Ncxe5 {[%clk 0:01:07.2]} 22. Nxe5
{[%clk 0:01:14.2]} 22... Rxe5 {[%clk 0:01:03.2]} 23. Qb3 {[%clk 0:01:09.1]}
23... Qf7 {[%clk 0:00:59.8]} 24. Nd3 {[%clk 0:01:05.2]} 24... Rxe3 {[%clk
0:00:52.3]} 25. fxe3 {[%clk 0:01:02.1]} 25... f4 {[%clk 0:00:53.2]} 26. exf4
{[%clk 0:01:01.4]} 26... a6 {[%clk 0:00:47.3]} 27. Ne5 {[%clk 0:00:27.3]} 27...
Nxe5 {[%clk 0:00:43]} 28. fxe5 {[%clk 0:00:26.2]} 28... axb5 {[%clk 0:00:43.9]}
29. Qxd5 {[%clk 0:00:21.9]} 29... Be6 {[%clk 0:00:42.1]} 30. Qd4 {[%clk
0:00:19.8]} 30... Bc4 {[%clk 0:00:33.4]} 31. h3 {[%clk 0:00:18.5]} 31... Qe6
{[%clk 0:00:30.6]} 32. Qe3 {[%clk 0:00:12.7]} 32... Bd5 {[%clk 0:00:26.7]} 33.
Qd4 {[%clk 0:00:10.7]} 33... Bc6 {[%clk 0:00:26.6]} 34. Qe3 {[%clk 0:00:08.1]}
34... Qa2 {[%clk 0:00:26.8]} 35. Rd2 {[%clk 0:00:07.5]} 35... Qe6 {[%clk
0:00:26]} 36. Rf2 {[%clk 0:00:07.5]} 36... Re8 {[%clk 0:00:25.6]} 37. Qf4 {[%clk
0:00:07.3]} 37... Rf8 {[%clk 0:00:23.3]} 38. Qe3 {[%clk 0:00:06.3]} 38... Rxf2
{[%clk 0:00:21.3]} 39. Qxf2 {[%clk 0:00:06.1]} 39... Bxe5 {[%clk 0:00:18.9]} 40.
Qe2 {[%clk 0:00:05.2]} 40... Qd5 {[%clk 0:00:16]} 41. Qg4+ {[%clk 0:00:04]}
41... Bg7 {[%clk 0:00:15]} 42. Re7 {[%clk 0:00:03]} 42... Qd4+ {[%clk
0:00:14.3]} 43. Qxd4 {[%clk 0:00:02.2]} 43... Bxd4+ {[%clk 0:00:13.8]} 44. Kf1
{[%clk 0:00:02.6]} 44... Bb2 {[%clk 0:00:14.2]} 45. a4 {[%clk 0:00:01.4]} 45...
bxa4 {[%clk 0:00:13.5]} 0-1

[Event "*** Titled Tuesday Blitz"]
[Site "Chess.com"]
[Date "2021.02.16"]
[Round "6"]
[White "federicosellitti"]
[Black "Cecile-Haussernot"]
[Result "1-0"]
[WhiteElo "2463"]
[BlackElo "2305"]
[TimeControl "180+1"]
[EndTime "11:08:51 PST"]
[Termination "federicosellitti won by resignation"]

1. e4 {[%clk 0:03:00.9]} 1... c5 {[%clk 0:02:57]} 2. Nc3 {[%clk 0:03:01.1]} 2...
Nc6 {[%clk 0:02:55]} 3. g3 {[%clk 0:03:01.6]} 3... g6 {[%clk 0:02:54.2]} 4. Bg2
{[%clk 0:03:02.1]} 4... Bg7 {[%clk 0:02:54.3]} 5. d3 {[%clk 0:03:02.7]} 5... e6
{[%clk 0:02:53.9]} 6. Be3 {[%clk 0:03:03.3]} 6... d6 {[%clk 0:02:48.8]} 7. Qd2
{[%clk 0:02:59.8]} 7... Rb8 {[%clk 0:02:45.7]} 8. Nge2 {[%clk 0:02:58.5]} 8...
b5 {[%clk 0:02:45]} 9. O-O {[%clk 0:02:59.1]} 9... b4 {[%clk 0:02:43.3]} 10. Nd1
{[%clk 0:02:59.6]} 10... h5 {[%clk 0:02:41.7]} 11. d4 {[%clk 0:02:49.1]} 11...
cxd4 {[%clk 0:02:33.5]} 12. Nxd4 {[%clk 0:02:50]} 12... Nxd4 {[%clk 0:02:26.6]}
13. Bxd4 {[%clk 0:02:50.9]} 13... Nf6 {[%clk 0:02:25.5]} 14. Bxa7 {[%clk
0:02:40.8]} 14... Ra8 {[%clk 0:02:20]} 15. Bd4 {[%clk 0:02:14.7]} 15... O-O
{[%clk 0:02:10.2]} 16. Qxb4 {[%clk 0:02:08.2]} 16... Ba6 {[%clk 0:02:07.2]} 17.
Re1 {[%clk 0:02:06]} 17... Rb8 {[%clk 0:01:55.4]} 18. Qd2 {[%clk 0:01:55.5]}
18... e5 {[%clk 0:01:33.9]} 19. Bc3 {[%clk 0:01:41.7]} 19... Qb6 {[%clk
0:01:27]} 20. Ne3 {[%clk 0:01:36.8]} 20... Rfc8 {[%clk 0:01:15.7]} 21. Rad1
{[%clk 0:01:27.6]} 21... Rc6 {[%clk 0:01:07.8]} 22. h3 {[%clk 0:01:18]} 22...
Bh6 {[%clk 0:01:00.5]} 23. Qc1 {[%clk 0:00:49.9]} 23... Qb7 {[%clk 0:00:51.3]}
24. a4 {[%clk 0:00:38.3]} 24... Nd7 {[%clk 0:00:44.2]} 25. Qa1 {[%clk
0:00:26.1]} 25... Nc5 {[%clk 0:00:37.7]} 26. Nd5 {[%clk 0:00:22.8]} 26... Ne6
{[%clk 0:00:35.5]} 27. b3 {[%clk 0:00:16.8]} 27... Rbc8 {[%clk 0:00:30.2]} 28.
Bf1 {[%clk 0:00:13.2]} 28... h4 {[%clk 0:00:27.9]} 29. Bxa6 {[%clk 0:00:11]}
29... Rxa6 {[%clk 0:00:26.3]} 30. Bd2 {[%clk 0:00:09.2]} 30... Bxd2 {[%clk
0:00:22.4]} 31. Rxd2 {[%clk 0:00:10.1]} 31... Ng5 {[%clk 0:00:22.9]} 32. Kg2
{[%clk 0:00:08.8]} 32... hxg3 {[%clk 0:00:20.2]} 33. fxg3 {[%clk 0:00:09.7]}
33... Ne6 {[%clk 0:00:17.6]} 34. Re3 {[%clk 0:00:09]} 34... Nd4 {[%clk
0:00:17.4]} 35. Rf2 {[%clk 0:00:05.4]} 35... Nxc2 {[%clk 0:00:15.6]} 36. Nf6+
{[%clk 0:00:03.8]} 36... Kg7 {[%clk 0:00:15.1]} 37. Qc1 {[%clk 0:00:04.4]} 37...
Nxe3+ {[%clk 0:00:15]} 38. Qxe3 {[%clk 0:00:05.3]} 38... d5 {[%clk 0:00:12.4]}
39. Qg5 {[%clk 0:00:03.8]} 39... Rh8 {[%clk 0:00:10.4]} 40. Qxe5 {[%clk
0:00:03.5]} 40... Re6 {[%clk 0:00:08.7]} 41. Ne8+ {[%clk 0:00:03.1]} 41... Kf8
{[%clk 0:00:05.1]} 42. Qxh8+ {[%clk 0:00:03.6]} 42... Ke7 {[%clk 0:00:05.6]} 43.
Rxf7+ {[%clk 0:00:04.2]} 43... Kxf7 {[%clk 0:00:05.1]} 44. Qh7+ {[%clk
0:00:04.9]} 44... Kxe8 {[%clk 0:00:05.2]} 45. Qxb7 {[%clk 0:00:05.8]} 45... Re5
{[%clk 0:00:03.8]} 46. Qxd5 {[%clk 0:00:04.6]} 46... Rxd5 {[%clk 0:00:03.6]} 47.
exd5 {[%clk 0:00:05.5]} 47... Kd7 {[%clk 0:00:03.6]} 48. Kf3 {[%clk 0:00:06.4]}
1-0

[Event "*** Titled Tuesday Blitz"]
[Site "Chess.com"]
[Date "2021.02.16"]
[Round "6"]
[White "Srisshhhtea"]
[Black "OlifantCZ"]
[Result "0-1"]
[WhiteElo "2430"]
[BlackElo "2313"]
[TimeControl "180+1"]
[EndTime "11:08:51 PST"]
[Termination "OlifantCZ won by checkmate"]

1. d4 {[%clk 0:03:00.9]} 1... Nf6 {[%clk 0:02:58.8]} 2. c4 {[%clk 0:02:56.4]}
2... g6 {[%clk 0:02:58.6]} 3. Nc3 {[%clk 0:02:52.2]} 3... Bg7 {[%clk 0:02:55.9]}
4. e4 {[%clk 0:02:47.7]} 4... O-O {[%clk 0:02:55.3]} 5. Bd3 {[%clk 0:02:46.3]}
5... d6 {[%clk 0:02:55.1]} 6. Nge2 {[%clk 0:02:44.3]} 6... c5 {[%clk 0:02:55.3]}
7. d5 {[%clk 0:02:42.5]} 7... e6 {[%clk 0:02:55.2]} 8. O-O {[%clk 0:02:42.2]}
8... exd5 {[%clk 0:02:55.6]} 9. cxd5 {[%clk 0:02:35.1]} 9... Na6 {[%clk
0:02:49.8]} 10. Ng3 {[%clk 0:02:21.9]} 10... Nc7 {[%clk 0:02:48.8]} 11. a4
{[%clk 0:02:09.6]} 11... a6 {[%clk 0:02:48]} 12. Re1 {[%clk 0:02:05.5]} 12...
Rb8 {[%clk 0:02:46.9]} 13. a5 {[%clk 0:02:03.3]} 13... b5 {[%clk 0:02:47.2]} 14.
axb6 {[%clk 0:02:04.2]} 14... Rxb6 {[%clk 0:02:47.4]} 15. h3 {[%clk 0:01:42.1]}
15... Bd7 {[%clk 0:02:46.7]} 16. Bf4 {[%clk 0:01:27.8]} 16... Bb5 {[%clk
0:02:37.2]} 17. Bc2 {[%clk 0:01:24.6]} 17... Nd7 {[%clk 0:02:34.7]} 18. Qc1
{[%clk 0:00:40.6]} 18... Re8 {[%clk 0:02:19.4]} 19. Bg5 {[%clk 0:00:36.5]} 19...
Qb8 {[%clk 0:02:17.8]} 20. Bh6 {[%clk 0:00:33.2]} 20... Bh8 {[%clk 0:02:12.4]}
21. Nf5 {[%clk 0:00:30.5]} 21... Ne5 {[%clk 0:02:06.8]} 22. Qg5 {[%clk
0:00:23.7]} 22... f6 {[%clk 0:01:55.5]} 23. Qg3 {[%clk 0:00:22.5]} 23... Nc4
{[%clk 0:01:55.3]} 24. b3 {[%clk 0:00:20.4]} 24... Ne5 {[%clk 0:01:51.5]} 25. f4
{[%clk 0:00:20.1]} 25... Nf7 {[%clk 0:01:51.6]} 26. Rad1 {[%clk 0:00:17.7]}
26... Bd7 {[%clk 0:01:16.8]} 27. Qh4 {[%clk 0:00:15.7]} 27... Nb5 {[%clk
0:01:11.9]} 28. Nxb5 {[%clk 0:00:15.1]} 28... axb5 {[%clk 0:01:11.6]} 29. Ng3
{[%clk 0:00:12.6]} 29... c4 {[%clk 0:01:05.3]} 30. bxc4 {[%clk 0:00:11.8]} 30...
bxc4 {[%clk 0:01:05.4]} 31. e5 {[%clk 0:00:12.4]} 31... dxe5 {[%clk 0:01:02.3]}
32. fxe5 {[%clk 0:00:12.6]} 32... Nxe5 {[%clk 0:01:02.2]} 33. Bf4 {[%clk
0:00:10.6]} 33... Rb2 {[%clk 0:00:56.5]} 34. Be4 {[%clk 0:00:09.8]} 34... Nd3
{[%clk 0:00:50]} 35. Bxb8 {[%clk 0:00:08.4]} 35... Nxe1 {[%clk 0:00:41.5]} 36.
Rxe1 {[%clk 0:00:09.3]} 36... Rexb8 {[%clk 0:00:39.6]} 37. d6 {[%clk 0:00:09.9]}
37... c3 {[%clk 0:00:34.7]} 38. Bd5+ {[%clk 0:00:10]} 38... Kg7 {[%clk 0:00:33]}
39. Qxh7+ {[%clk 0:00:10.6]} 39... Kxh7 {[%clk 0:00:31.4]} 40. Re7+ {[%clk
0:00:11.1]} 40... Kh6 {[%clk 0:00:30.9]} 41. Be4 {[%clk 0:00:11.5]} 41... c2
{[%clk 0:00:20.9]} 42. Ne2 {[%clk 0:00:12.1]} 42... Rb1+ {[%clk 0:00:19.4]} 43.
Kh2 {[%clk 0:00:12.6]} 43... c1=Q {[%clk 0:00:19]} 44. Nxc1 {[%clk 0:00:13.1]}
44... Rxc1 {[%clk 0:00:19.4]} 45. Rxd7 {[%clk 0:00:13.6]} 45... f5 {[%clk
0:00:18.6]} 46. Bf3 {[%clk 0:00:13.8]} 46... Be5+ {[%clk 0:00:18.6]} 47. g3
{[%clk 0:00:13.1]} 47... Rb2+ {[%clk 0:00:18.5]} 48. Bg2 {[%clk 0:00:13.6]}
48... Rcc2 {[%clk 0:00:17]} 49. h4 {[%clk 0:00:13]} 49... Rxg2+ {[%clk
0:00:16.5]} 50. Kh1 {[%clk 0:00:13.9]} 50... Rh2+ {[%clk 0:00:15.2]} 51. Kg1
{[%clk 0:00:14.8]} 51... Bd4+ {[%clk 0:00:15.8]} 52. Kf1 {[%clk 0:00:13.6]}
52... Rh1# {[%clk 0:00:16.3]} 0-1

[Event "*** Titled Tuesday Blitz"]
[Site "Chess.com"]
[Date "2021.02.16"]
[Round "6"]
[White "Shuvalov"]
[Black "NTBT_DHS"]
[Result "1-0"]
[WhiteElo "2536"]
[BlackElo "2769"]
[TimeControl "180+1"]
[EndTime "11:08:55 PST"]
[Termination "Shuvalov won by resignation"]

1. Nf3 {[%clk 0:02:50]} 1... Nf6 {[%clk 0:02:59.5]} 2. c4 {[%clk 0:02:49.7]}
2... g6 {[%clk 0:02:59.6]} 3. Nc3 {[%clk 0:02:49.6]} 3... Bg7 {[%clk 0:03:00.5]}
4. e4 {[%clk 0:02:49.7]} 4... O-O {[%clk 0:03:01.4]} 5. d4 {[%clk 0:02:50.2]}
5... d6 {[%clk 0:03:02]} 6. Be2 {[%clk 0:02:50.5]} 6... e5 {[%clk 0:03:02.5]} 7.
O-O {[%clk 0:02:50.6]} 7... Nc6 {[%clk 0:03:03]} 8. d5 {[%clk 0:02:50.6]} 8...
Ne7 {[%clk 0:03:03.6]} 9. Ne1 {[%clk 0:02:50.8]} 9... Nd7 {[%clk 0:03:03.8]} 10.
f3 {[%clk 0:02:50.6]} 10... f5 {[%clk 0:03:04.5]} 11. g4 {[%clk 0:02:50.9]}
11... Nf6 {[%clk 0:02:59.3]} 12. Nd3 {[%clk 0:02:49.4]} 12... b6 {[%clk
0:02:59.2]} 13. Be3 {[%clk 0:02:48.5]} 13... Bb7 {[%clk 0:02:57.9]} 14. a4
{[%clk 0:02:45.6]} 14... a6 {[%clk 0:02:57.6]} 15. Nf2 {[%clk 0:02:41.3]} 15...
Kh8 {[%clk 0:02:35.3]} 16. b4 {[%clk 0:02:39.9]} 16... a5 {[%clk 0:02:32.7]} 17.
bxa5 {[%clk 0:02:38.1]} 17... Rxa5 {[%clk 0:02:32.4]} 18. Nb5 {[%clk 0:02:29.7]}
18... Nd7 {[%clk 0:02:08]} 19. Bd2 {[%clk 0:02:23.1]} 19... Ra8 {[%clk
0:02:06.4]} 20. a5 {[%clk 0:02:22.7]} 20... Nc5 {[%clk 0:01:51.8]} 21. axb6
{[%clk 0:02:01.1]} 21... cxb6 {[%clk 0:01:50.8]} 22. Rxa8 {[%clk 0:02:00.1]}
22... Bxa8 {[%clk 0:01:51.7]} 23. Qa1 {[%clk 0:01:45.8]} 23... Bb7 {[%clk
0:01:49.7]} 24. Qa7 {[%clk 0:01:33.3]} 24... Nc8 {[%clk 0:01:48.9]} 25. Qb8
{[%clk 0:01:27.9]} 25... Rf7 {[%clk 0:01:42.7]} 26. gxf5 {[%clk 0:01:17]} 26...
Na6 {[%clk 0:01:40.8]} 27. Nxd6 {[%clk 0:00:48.6]} 27... Rd7 {[%clk 0:01:23.7]}
28. Nxb7 {[%clk 0:00:40.5]} 28... Qf8 {[%clk 0:01:15.1]} 29. Qa8 {[%clk
0:00:37.5]} 29... Nc7 {[%clk 0:01:14.7]} 30. Qa4 {[%clk 0:00:35.3]} 30... b5
{[%clk 0:01:09.7]} 31. cxb5 {[%clk 0:00:32.8]} 31... gxf5 {[%clk 0:01:10.1]} 32.
Bb4 {[%clk 0:00:22.8]} 32... Qg8 {[%clk 0:01:03.7]} 33. Kh1 {[%clk 0:00:22.1]}
33... Ne8 {[%clk 0:00:53.1]} 34. Nc5 {[%clk 0:00:20.7]} 34... Ra7 {[%clk
0:00:53.4]} 35. Qb3 {[%clk 0:00:20.5]} 35... Bh6 {[%clk 0:00:47.2]} 36. Ne6
{[%clk 0:00:19.9]} 36... Nf6 {[%clk 0:00:34.3]} 37. exf5 {[%clk 0:00:19.5]}
37... Nh5 {[%clk 0:00:31.8]} 38. Ng4 {[%clk 0:00:18.9]} 38... Bf4 {[%clk
0:00:23.7]} 39. Bc3 {[%clk 0:00:18.8]} 39... h6 {[%clk 0:00:07.5]} 40. Rg1
{[%clk 0:00:17]} 40... Qf7 {[%clk 0:00:03.4]} 41. Nxe5 {[%clk 0:00:14.8]} 41...
Qxf5 {[%clk 0:00:03.3]} 42. Ng6+ {[%clk 0:00:09.6]} 42... Kg8 {[%clk 0:00:03.9]}
43. Nh4+ {[%clk 0:00:08.5]} 43... Qg5 {[%clk 0:00:04.2]} 44. Nxg5 {[%clk
0:00:07.9]} 44... hxg5 {[%clk 0:00:05.1]} 45. Ng6 {[%clk 0:00:07.7]} 45... Rh7
{[%clk 0:00:06]} 46. d6+ {[%clk 0:00:07.6]} 46... Rf7 {[%clk 0:00:04.3]} 47.
Nxf4 {[%clk 0:00:07.9]} 47... g4 {[%clk 0:00:04.2]} 48. Bc4 {[%clk 0:00:08]} 1-0